bitfinex/quotes_ETHUSD_20260217
["timestamp","ask_amount","ask_price","bid_price","bid_amount"]
[1771346791805,1.25590274,1990.7,1989.6,0.48369441]
[1771346792009,1.25596583,1990.5,1989.5,0.536]
[1771346792390,1.25596583,1990.5,1989.5,0.001]
[1771346792819,5.02285656,1990.9,1989.5,0.001]
[1771346792820,1.25571349,1990.9,1989.5,0.48469441]
[1771346792999,2.053966,1990.8,1989.6,1.441]
[1771346793205,1.25571349,1990.9,1989.6,1.441]
[1771346793405,1.25571349,1990.9,1989.6,1.92469441]
[1771346794104,1.25583965,1990.7,1989.7,1.25647082]
[1771346794440,1.25583965,1990.7,1989.8,1.441]
[1771346795499,1.25583965,1990.7,1989.7,1.74016523]
[1771346795696,1.25583965,1990.7,1989.8,1.441]
[1771346795934,1.25583965,1990.7,1989.7,1.74016523]
[1771346796097,5.02335861,1990.9,1989.7,1.74016523]
[1771346796098,5.02335861,1990.9,1989.9,1.79234234]
[1771346796427,4.46324,1990.9,1989.9,1.25634234]
[1771346796723,5.02445861,1991.0,1990.0,1.01969441]
[1771346796724,0.0011,1991.0,1990.0,1.01969441]
[1771346796944,0.0011,1991.0,1990.1,0.48369441]
[1771346797627,0.0011,1991.0,1990.3,0.48369441]
[1771346798218,0.0011,1991.0,1990.4,1.25602893]
[1771346798621,0.23166383,1992.7,1990.6,0.58609441]
[1771346798822,4.024276,1992.7,1990.9,0.48369441]
[1771346799148,0.23166383,1992.4,1990.5,0.48369441]
[1771346799308,2.90496,1992.3,1990.9,0.48369441]
[1771346799639,3.241693,1992.3,1991.0,1.443]
[1771346799798,0.23166383,1992.4,1991.1,0.538]
[1771346800208,1.25483109,1992.3,1991.2,1.2555243]
[1771346800526,1.25466756,1992.6,1991.3,0.48369441]
[1771346801850,2.15962498,1992.7,1991.3,0.48369441]
[1771346802148,1.2544533,1992.9,1991.5,0.48369441]
[1771346802520,16.616458,1992.8,1991.4,1.25539821]
[1771346802725,10.184438,1992.8,1991.5,1.443]
[1771346803045,6.01138,1992.8,1991.5,1.443]
[1771346803218,1.48611713,1992.9,1991.5,1.443]
[1771346804249,1.25457921,1992.7,1991.6,1.25527214]
[1771346805316,1.25426449,1993.2,1991.7,0.4532907]
[1771346805539,1.25426449,1993.2,1991.8,0.4532907]
[1771346806241,1.48683957,1993.6,1992.0,0.4532907]
[1771346806447,6.827871,1993.4,1992.0,0.4532907]
[1771346806621,6.827871,1993.4,1992.1,1.441]
[1771346807030,0.598,1993.4,1992.2,0.4532907]
[1771346807218,1.25514401,1993.6,1992.4,0.4532907]
[1771346807412,1.25514401,1993.6,1992.5,0.4532907]
[1771346807413,0.0011,1993.6,1992.5,0.4532907]
[1771346807945,0.0011,1993.6,1992.6,0.4532907]
[1771346808147,0.0011,1993.6,1992.9,0.4532907]
[1771346808317,0.0011,1993.6,1993.0,2.69539036]
[1771346808518,0.0011,1993.6,1993.0,3.14868106]
[1771346808718,0.00729667,1993.8,1993.1,0.4532907]
[1771346809124,0.00729667,1993.8,1993.2,1.442]
[1771346809319,0.00729667,1993.8,1993.1,0.4532907]
[1771346809742,1.26118681,1993.8,1993.0,1.25439036]
[1771346809929,1.26118681,1993.8,1993.1,1.443]
[1771346809930,0.00729667,1993.8,1993.1,1.443]
[1771346810333,0.00729667,1993.8,1993.2,1.25426449]
[1771346810525,1.26120679,1993.8,1992.6,1.70786991]
[1771346810725,1.26120679,1993.8,1992.7,5.01831218]
[1771346810944,1.26120679,1993.8,1992.8,0.538]
[1771346811249,1.26120679,1993.8,1992.9,0.538]
[1771346812251,1.26120679,1993.8,1993.0,1.25439036]
[1771346812443,1.26120679,1993.8,1992.9,0.538]
[1771346812648,0.23276383,1993.7,1992.9,0.538]
[1771346812954,0.23276383,1993.7,1992.3,1.25483109]
[1771346813255,0.23386383,1993.7,1992.3,1.25483109]
[1771346813635,22.64921817,1993.6,1992.3,1.25483109]
[1771346813835,0.23276383,1993.5,1992.0,1.25502008]
[1771346814040,0.23276383,1993.3,1992.0,1.25502008]
[1771346814241,18.7826157,1993.0,1991.5,5.02111503]
[1771346814452,8.3322087,1993.0,1991.5,5.02111503]
[1771346814759,1.25439036,1993.0,1991.6,0.49316791]
[1771346815132,8.56497253,1993.0,1991.6,0.49316791]
[1771346815452,0.23276383,1992.9,1991.5,5.02111503]
[1771346815842,0.23276383,1992.9,1991.3,5.0216988]
[1771346816040,1.25439036,1993.0,1991.4,0.49316791]
[1771346816268,1.25451625,1992.8,1991.5,1.25533517]
[1771346816644,0.23276383,1992.7,1991.5,1.25533517]
[1771346816842,0.23276383,1992.7,1991.1,5.51550956]
[1771346817042,0.23276383,1992.7,1991.2,0.49316791]
[1771346818035,1.25451625,1992.8,1991.2,0.49316791]
[1771346818236,5.01757128,1993.0,1991.5,5.51425648]
[1771346818477,14.71673883,1992.9,1991.6,1.25527214]
[1771346818762,5.01757128,1993.0,1991.2,5.02209096]
[1771346818763,0.23276383,1992.8,1991.2,5.02209096]
[1771346819135,0.23276383,1992.8,1991.2,5.51525887]
[1771346819450,0.23276383,1992.8,1991.3,0.49316791]
[1771346819764,0.23276383,1992.8,1991.9,0.0070188]
[1771346820335,5.01752604,1993.1,1991.9,0.0070188]
[1771346820662,1.25413865,1993.4,1991.9,0.50018671]
[1771346821643,17.977363,1993.3,1991.9,0.50018671]
[1771346821962,0.23276383,1993.3,1991.9,0.50018671]
[1771346822136,0.23276383,1993.3,1991.9,0.0070188]
[1771346822332,0.23276383,1993.0,1991.9,0.0070188]
[1771346823057,17.40089383,1992.9,1991.9,0.0070188]
[1771346823238,9.622867,1992.8,1991.9,0.0070188]
[1771346823442,0.23276383,1992.9,1991.9,0.0070188]
[1771346823968,1.25432742,1993.1,1991.9,0.0070188]
[1771346824140,1.25432742,1993.1,1991.9,0.50018671]
[1771346824336,5.24957706,1993.3,1992.0,1.25502008]
[1771346824565,0.23276383,1993.1,1992.0,1.25502008]
[1771346825242,0.23276383,1992.9,1991.9,0.0070188]
[1771346825440,11.385957,1992.7,1991.9,0.0070188]
[1771346826171,6.66449863,1993.0,1991.2,1.2555243]
[1771346826172,0.23276383,1992.5,1991.2,1.2555243]
[1771346826466,1.25495708,1992.1,1990.8,5.02309767]
[1771346826669,1.25495708,1992.1,1991.9,0.001]
[1771346826837,1.25495708,1992.1,1990.8,5.02309767]
[1771346827033,1.25495708,1992.1,1991.7,0.001]
[1771346827237,1.25495708,1992.1,1990.8,5.02309767]
[1771346828167,5.01882357,1992.5,1990.9,0.49316791]
[1771346828543,1.25483109,1992.3,1991.0,1.74881833]
[1771346828869,0.23176383,1992.2,1991.0,1.25565042]
[1771346829072,0.23176383,1992.2,1990.9,1.25569977]
[1771346829969,1.25483109,1992.3,1990.9,1.74886768]
[1771346830169,1.25483109,1992.3,1991.1,0.49316791]
[1771346830369,1.25480588,1992.4,1991.1,0.49316791]
[1771346830540,6.66449863,1993.0,1991.1,0.49316791]
[1771346830541,0.23176383,1993.3,1991.3,0.49316791]
[1771346830752,5.01625178,1993.6,1991.9,0.49316791]
[1771346830753,3.47934884,1993.6,1991.9,0.49316791]
[1771346830954,2.193055,1993.5,1991.9,0.49316791]
[1771346831155,1.25509305,1993.7,1992.1,0.49316791]
[1771346831374,0.0011,1993.7,1992.5,0.49316791]
[1771346831685,0.0011,1993.7,1992.7,0.49316791]
[1771346832686,0.0011,1993.7,1992.8,1.25451625]
[1771346833086,0.0011,1993.7,1992.9,0.49316791]
[1771346833974,0.0011,1993.9,1993.0,0.49316791]
[1771346834285,0.0011,1993.9,1992.8,1.25451625]
[1771346834509,0.0011,1993.9,1992.7,1.25454566]
[1771346834687,0.0011,1993.9,1992.3,1.25483109]
[1771346834891,0.0011,1993.9,1992.4,0.46074491]
[1771346835874,0.0011,1993.9,1993.0,0.46074491]
[1771346836074,0.0011,1993.9,1992.6,0.56314491]
[1771346836661,0.0011,1993.9,1993.0,0.46074491]
[1771346836892,0.0011,1993.9,1992.9,1.2544533]
[1771346837067,0.0011,1993.9,1992.7,5.01806503]
[1771346837999,0.23396383,1993.9,1992.4,1.25476811]
[1771346838166,6.7682994,1993.8,1992.4,1.25476811]
[1771346838569,1.25394994,1993.7,1992.3,5.01915893]
[1771346838799,1.25394994,1993.7,1991.9,1.25508308]
[1771346838800,6.7682994,1993.5,1991.9,1.25508308]
[1771346838999,6.53543557,1993.2,1991.9,1.25508308]
[1771346839167,12.902124,1993.1,1991.9,1.25508308]
[1771346839360,10.573664,1993.1,1991.9,1.25508308]
[1771346839876,0.23286383,1993.3,1991.9,1.25508308]
[1771346840078,5.1579,1993.2,1991.9,1.25508308]
[1771346840479,0.23286383,1993.3,1991.9,1.25508308]
[1771346840688,1.25432742,1993.1,1991.8,5.0214272]
[1771346840891,1.25432742,1993.1,1991.8,0.001]
[1771346841201,0.23286383,1993.0,1991.8,0.001]
[1771346842602,10.693117,1992.7,1991.8,0.001]
[1771346842801,0.23286383,1992.5,1991.8,0.001]
[1771346843293,0.23286383,1992.5,1991.7,0.001]
[1771346843503,0.23286383,1992.3,1991.7,0.001]
[1771346843689,17.522201,1992.2,1991.7,0.001]
[1771346843893,0.23186383,1992.1,1991.5,0.001]
[1771346844289,3.642997,1992.4,1991.5,0.001]
[1771346844497,0.23186383,1992.5,1991.5,0.001]
[1771346844677,5.0185687,1992.7,1991.5,0.001]
[1771346846184,5.25043253,1992.7,1991.5,0.001]
[1771346846405,14.949078,1992.4,1991.5,0.001]
[1771346846587,13.240078,1992.4,1991.5,0.001]
[1771346846783,1.25483109,1992.3,1991.5,0.001]
[1771346847510,19.227143,1992.1,1991.5,0.001]
[1771346847708,0.23186383,1992.0,1991.5,0.001]
[1771346848081,0.23186383,1992.0,1990.9,1.25570011]
[1771346848276,0.23186383,1992.0,1990.6,1.25590274]
[1771346848481,6.66202408,1992.1,1990.3,5.48509984]
[1771346848482,0.23186383,1991.8,1990.4,5.02389317]
[1771346848878,7.820397,1991.6,1990.0,1.2562814]
[1771346849120,6.973927,1991.6,1990.0,1.2562814]
[1771346849611,1.48707294,1991.7,1990.1,0.46074491]
[1771346850000,13.31178,1991.6,1990.1,0.46074491]
[1771346850177,0.23186383,1991.6,1990.1,0.46074491]
[1771346851705,1.25533517,1991.5,1990.2,1.25615516]
[1771346852595,16.160313,1991.4,1990.2,1.25615516]
[1771346852797,0.23186383,1991.4,1990.2,1.25615516]
[1771346853205,1.25533517,1991.5,1990.2,1.71790007]
[1771346853591,5.02134069,1991.6,1990.2,1.71790007]
[1771346853806,15.967423,1991.4,1990.2,1.25715516]
[1771346854011,0.23186383,1991.4,1990.2,1.25715516]
[1771346854215,0.23186383,1991.2,1990.2,0.001]
[1771346854582,14.33367183,1991.1,1990.2,0.001]
[1771346854934,6.66202408,1991.3,1990.2,0.001]
[1771346854935,0.23186383,1991.0,1990.2,0.001]
[1771346855214,10.507999,1990.9,1990.2,0.001]
[1771346855423,6.66202408,1991.3,1990.2,0.001]
[1771346855719,1.2555243,1991.2,1990.2,0.001]
[1771346855919,4.464615,1991.1,1990.2,0.001]
[1771346856129,4.367615,1991.1,1990.2,0.001]
[1771346856510,4.59947883,1991.1,1990.2,0.001]
[1771346856698,3.4385,1991.0,1990.2,0.001]
[1771346856906,0.1024,1990.9,1990.0,0.001]
[1771346857295,2.8685,1990.9,1990.0,0.001]
[1771346857620,6.89388791,1990.9,1990.0,0.001]
[1771346857928,1.25577657,1990.8,1990.0,0.001]
[1771346858491,5.02231453,1991.2,1990.0,0.001]
[1771346858694,1.25558736,1991.1,1990.0,0.001]
[1771346858896,1.25533517,1991.5,1990.0,0.46174491]
[1771346859299,5.299108,1991.9,1990.0,0.46174491]
[1771346859714,1.25514609,1991.8,1990.1,1.25621828]
[1771346860025,1.25514609,1991.8,1990.2,0.46074491]
[1771346860533,3.62200611,1992.4,1990.6,7.12276899]
[1771346860847,3.926997,1992.7,1990.9,0.46074491]
[1771346861136,4.15886083,1992.7,1990.9,0.46074491]
[1771346861333,4.447917,1992.5,1990.9,0.46074491]
[1771346861549,0.23186383,1992.4,1990.9,0.46074491]
[1771346861842,18.726916,1992.1,1990.5,1.71671074]
[1771346862144,6.66202408,1991.7,1990.2,1.25615516]
[1771346862447,8.275703,1991.6,1990.2,1.25615516]
[1771346862597,9.054603,1991.5,1990.2,1.25615516]
[1771346863102,0.1024,1991.8,1990.2,1.71690007]
[1771346863313,3.880783,1991.8,1990.3,0.46074491]
[1771346863539,0.33426383,1992.0,1990.3,0.46074491]
[1771346863699,4.482791,1991.9,1990.3,0.46074491]
[1771346863900,1.25514609,1991.8,1990.4,1.25602893]
[1771346864102,1.25514609,1991.8,1990.5,0.46074491]
[1771346864617,2.359266,1991.7,1990.5,0.46074491]
[1771346865011,5.02018273,1992.0,1990.5,0.46074491]
[1771346865239,6.66202408,1992.1,1990.5,0.46074491]
[1771346865413,17.324983,1992.0,1990.5,0.46074491]
[1771346865731,14.587642,1991.9,1990.4,1.25602893]
[1771346865932,1.25514609,1991.8,1990.4,0.45492193]
[1771346866846,0.0011,1991.6,1990.4,0.45492193]
[1771346868105,0.0011,1991.6,1990.5,1.25596583]
[1771346868712,0.0011,1991.6,1990.4,5.47878528]
[1771346869019,11.004138,1991.5,1990.4,1.25598896]
[1771346869218,15.536701,1991.3,1990.2,1.25615516]
[1771346869758,8.816799,1991.3,1990.2,1.25615516]
[1771346869911,0.0011,1991.6,1990.2,1.25615516]
[1771346870107,1.25637214,1991.6,1990.1,5.48065025]
[1771346870449,2.760856,1991.5,1990.1,0.45592193]
[1771346870949,0.23186383,1991.4,1990.1,0.001]
[1771346871251,12.993975,1991.3,1990.1,0.001]
[1771346872351,1.48738813,1991.2,1990.1,0.001]
[1771346872512,13.009245,1991.0,1990.1,0.001]
[1771346872709,0.23186383,1991.0,1990.1,0.001]
[1771346872951,18.70600591,1990.9,1990.1,0.001]
[1771346873164,18.796553,1990.7,1989.9,0.001]
[1771346873437,5.157423,1990.7,1989.9,0.001]
[1771346874342,1.25590274,1990.6,1989.9,0.001]
[1771346874919,14.413913,1990.5,1989.9,0.001]
[1771346875114,14.413913,1990.5,1989.3,1.25667447]
[1771346875315,14.413913,1990.5,1989.0,1.25691302]
[1771346875517,16.72041,1990.4,1989.0,1.25691302]
[1771346875949,13.799051,1990.4,1989.0,1.25691302]
[1771346876157,1.25609204,1990.3,1989.0,1.71948495]
[1771346876434,1.25609204,1990.3,1989.1,0.46257193]
[1771346877456,15.938697,1990.2,1989.0,1.25691302]
[1771346877657,0.23186383,1989.7,1988.1,0.46257193]
[1771346877861,0.23186383,1989.7,1988.3,0.46257193]
[1771346878058,0.1024,1989.9,1988.3,0.46257193]
[1771346878232,1.25647082,1989.7,1988.4,1.71986422]
[1771346878432,1.25647082,1989.7,1988.5,0.46257193]
[1771346880059,1.25647082,1989.7,1988.4,1.25729229]
[1771346880246,10.57181483,1989.7,1988.2,1.25741877]
[1771346880447,0.23186383,1989.7,1988.6,0.001]
[1771346880631,12.311684,1989.6,1988.6,0.001]
[1771346880827,6.767957,1989.6,1988.6,0.001]
[1771346881253,4.461766,1989.6,1988.6,0.001]
[1771346881659,4.153566,1989.7,1988.6,0.001]
[1771346881878,5.02539155,1989.9,1988.6,0.46357193]
[1771346882078,6.855339,1990.0,1988.6,0.46357193]
[1771346882367,25.308027,1989.8,1988.6,0.001]
[1771346882574,27.13477911,1989.6,1988.6,0.001]
[1771346882770,6.68513811,1989.6,1988.6,0.001]
[1771346883135,9.352764,1989.6,1988.6,1.25815617]
[1771346883344,1.25634453,1989.9,1988.6,1.7207281]
[1771346883558,1.25634453,1989.9,1988.7,0.46257193]
[1771346883776,6.68513811,1990.4,1988.7,0.46257193]
[1771346883777,1.25615516,1990.3,1988.7,0.46257193]
[1771346883939,3.282766,1990.2,1988.7,0.46257193]
[1771346884139,1.25640767,1989.8,1988.8,1.25703942]
[1771346884576,1.25640767,1989.8,1988.7,1.25705409]
[1771346885070,1.25640767,1989.8,1988.7,1.71962602]
[1771346885459,1.25640767,1989.8,1988.7,1.25705409]
[1771346885664,1.25640767,1989.8,1988.8,0.46257193]
[1771346886170,1.25621828,1990.1,1988.8,0.46257193]
[1771346886347,1.25621828,1990.1,1989.0,0.46257193]
[1771346887134,5.12654691,1990.4,1989.0,0.46257193]
[1771346887135,2.59641,1990.3,1989.0,0.46257193]
[1771346887343,7.10612554,1990.2,1989.0,0.46257193]
[1771346887538,7.10612554,1990.2,1988.9,1.25697621]
[1771346887974,7.10612554,1989.9,1988.7,5.02840137]
[1771346888163,7.10612554,1989.9,1988.6,1.72067455]
[1771346888164,7.10612554,1989.6,1988.6,0.001]
[1771346888468,1.25659713,1989.5,1988.6,1.25815279]
[1771346889278,1.25640767,1989.8,1988.6,1.25815279]
[1771346889495,3.836224,1989.7,1988.6,0.001]
[1771346889775,7.10612554,1989.6,1988.6,0.001]
[1771346890501,7.10612554,1989.3,1988.5,0.001]
[1771346890783,7.10612554,1989.3,1988.2,1.25740325]
[1771346891188,7.10612554,1989.3,1988.1,1.2574218]
[1771346891688,7.10612554,1988.7,1988.0,0.00703288]
[1771346892292,7.33798937,1989.0,1988.0,1.26455512]
[1771346892587,1.25697621,1988.9,1988.0,0.00703288]
[1771346893492,1.48884004,1988.9,1988.0,0.00703288]
[1771346893694,7.33798937,1989.3,1988.0,0.00703288]
[1771346893896,1.25678664,1989.2,1988.0,0.46960481]
[1771346894067,1.25678664,1989.2,1988.0,0.00703288]
[1771346894465,16.816958,1988.9,1988.0,0.00703288]
[1771346894664,5.6179,1988.9,1988.0,0.00703288]
[1771346894989,4.834,1988.9,1988.0,0.00703288]
[1771346895394,4.558,1988.9,1988.0,0.00703288]
[1771346895575,1.25678664,1989.2,1988.3,0.001]
[1771346895777,14.687336,1989.1,1988.3,0.001]
[1771346896197,10.632688,1988.9,1988.3,0.001]
[1771346896377,1.25703942,1988.8,1988.0,0.00703288]
[1771346896564,1.25703942,1988.8,1988.0,0.00803288]
[1771346896971,1.25702498,1988.9,1988.0,0.00803288]
[1771346897476,1.25702498,1988.9,1988.0,0.48072148]
[1771346897679,1.25702498,1988.9,1988.0,0.00803288]
[1771346898071,19.317962,1988.6,1987.4,1.25792492]
[1771346898283,2.499827,1988.6,1987.4,0.4726886]
[1771346898497,1.25722906,1988.5,1987.5,1.25786163]
[1771346898969,1.25722906,1988.5,1987.3,1.2935417]
[1771346898970,7.10612554,1988.4,1987.3,1.2935417]
[1771346900298,1.25722906,1988.5,1987.3,1.7662303]
[1771346900667,6.3162,1988.5,1987.3,1.7662303]
[1771346900874,3.1427,1988.5,1987.3,1.7662303]
[1771346901681,2.2897,1988.5,1987.3,1.7662303]
[1771346901879,2.2897,1988.5,1987.4,0.4726886]
[1771346902074,1.25703942,1988.8,1987.4,0.4726886]
[1771346902400,1.25678664,1989.2,1987.5,13.24393]
[1771346902584,1.25678664,1989.2,1987.6,0.4726886]
[1771346902784,1.25678664,1989.2,1987.8,0.4726886]
[1771346903470,7.10612554,1989.0,1987.8,0.4726886]
[1771346904098,0.23186383,1988.9,1987.7,1.25773507]
[1771346904472,7.10612554,1988.7,1987.5,5.0313244]
[1771346904692,1.25722906,1988.5,1987.5,5.0313244]
[1771346905581,1.25722906,1988.5,1987.5,1.25786163]
[1771346905998,5.02822827,1988.8,1987.5,1.73055023]
[1771346906313,5.02822827,1988.8,1987.6,0.4726886]
[1771346906512,7.10612554,1988.5,1987.3,1.29353969]
[1771346906719,0.23186383,1988.1,1987.1,0.1326344]
[1771346906887,1.48934584,1988.1,1987.1,1.39073277]
[1771346907212,1.25748201,1988.1,1987.1,0.1326344]
[1771346909304,1.25748201,1988.1,1987.5,0.001]
[1771346909501,1.25748201,1988.1,1987.1,0.1326344]
[1771346909707,1.25748201,1988.1,1987.4,0.001]
[1771346910184,1.25748201,1988.1,1987.2,0.001]
[1771346910580,1.25748201,1988.1,1987.2,0.4736886]
[1771346910786,1.25820262,1988.7,1987.2,1.25901887]
[1771346911108,1.25820262,1988.7,1987.3,0.4726886]
[1771346912921,1.25820262,1988.7,1987.5,0.4726886]
[1771346914713,0.0011,1988.7,1987.7,0.4726886]
[1771346915691,0.0011,1988.7,1987.9,0.4726886]
[1771346915926,5.02698167,1989.3,1987.9,0.4726886]
[1771346916827,22.096684,1989.2,1987.9,0.4726886]
[1771346917042,5.02698167,1989.3,1988.0,0.4726886]
[1771346917388,0.23296383,1989.2,1987.8,1.25761986]
[1771346917624,12.696218,1989.1,1987.8,1.25761986]
[1771346917924,5.02698167,1989.3,1987.9,0.4726886]
[1771346918601,5.02698167,1989.3,1988.1,0.4726886]
[1771346918847,13.261352,1989.4,1988.1,0.4726886]
[1771346918991,19.14578183,1989.0,1987.5,1.7305022]
[1771346919197,16.373758,1988.8,1987.5,0.4726886]
[1771346919397,5.309534,1988.8,1987.5,1.73054645]
[1771346919646,0.23296383,1989.0,1987.6,0.4726886]
[1771346919841,2.29,1988.9,1987.6,0.4726886]
[1771346920495,0.1024,1989.3,1987.6,0.4726886]
[1771346920708,4.65937283,1989.3,1987.6,0.4726886]
[1771346920915,3.580338,1989.0,1987.8,0.4726886]
[1771346921123,3.788504,1989.0,1987.8,0.4726886]
[1771346921522,2.046153,1989.0,1987.8,0.4726886]
[1771346922842,1.25697621,1988.9,1987.5,5.03128054]
[1771346923217,1.25697621,1988.9,1987.9,0.001]
[1771346923940,1.25697621,1988.9,1987.9,0.4736886]
[1771346924116,5.02754395,1989.1,1988.0,0.4726886]
[1771346924310,1.25684983,1989.1,1988.0,0.4726886]
[1771346924742,1.25684983,1989.1,1987.9,0.001]
[1771346924933,18.542446,1989.1,1987.9,0.001]
[1771346925129,17.262698,1989.1,1987.9,0.001]
[1771346925333,11.972642,1989.1,1987.9,0.001]
[1771346925724,11.710642,1989.0,1987.9,0.001]
[1771346926337,2.662066,1989.1,1987.9,0.001]
[1771346926635,5.02838227,1989.2,1987.9,0.001]
[1771346926836,0.0011,1989.2,1988.1,1.7313843]
[1771346927146,0.0011,1989.2,1988.2,0.47390229]
[1771346927753,0.0011,1989.2,1988.3,0.47390229]
[1771346928817,0.0011,1989.2,1988.5,0.47390229]
[1771346929239,0.0011,1989.2,1988.4,1.25729229]
[1771346929643,0.0011,1989.2,1988.2,1.25741877]
[1771346931656,0.0011,1989.2,1988.1,0.47390229]
[1771346931865,0.0011,1989.2,1988.0,5.03017214]
[1771346932038,0.0011,1989.2,1988.0,1.25754527]
[1771346932237,16.694486,1989.1,1987.9,0.001]
[1771346932446,15.768011,1989.1,1987.9,0.001]
[1771346933153,1.25691302,1989.0,1987.9,0.001]
[1771346935454,5.02765208,1989.1,1987.9,0.001]
[1771346936162,5.02765208,1989.1,1987.9,0.49931632]
[1771346936764,5.02765208,1989.1,1987.9,0.001]
[1771346937331,1.25697621,1988.9,1987.9,0.001]
[1771346938084,15.41054883,1988.8,1987.9,0.001]
[1771346938230,8.36310175,1988.9,1987.2,1.25800422]
[1771346938231,22.726054,1988.5,1987.2,1.25800422]
[1771346938426,22.726054,1988.5,1987.1,5.66329366]
[1771346938427,20.005653,1988.5,1987.1,0.63095072]
[1771346938658,12.60781683,1988.2,1987.1,0.1326344]
[1771346938852,0.23296383,1988.2,1987.1,0.1326344]
[1771346939046,0.23296383,1988.2,1987.7,0.001]
[1771346939433,11.52883006,1988.5,1987.7,0.001]
[1771346939749,1.25722906,1988.5,1987.7,0.001]
[1771346940070,2.547202,1988.4,1987.7,0.001]
[1771346940373,2.074252,1988.4,1987.7,0.001]
[1771346940545,0.23296383,1988.3,1987.7,0.001]
[1771346940742,0.23296383,1987.9,1987.1,0.1326344]
[1771346940950,0.23296383,1987.7,1987.1,0.07002222]
[1771346941145,16.34895,1987.6,1986.1,1.75701432]
[1771346941350,16.34895,1987.6,1986.2,1.258659]
[1771346941551,1.49082546,1987.5,1986.1,0.49831632]
[1771346941739,1.25786163,1987.5,1986.1,1.75701414]
[1771346941956,1.25786163,1987.5,1986.4,0.49831632]
[1771346942662,1.25786163,1987.5,1986.6,0.50131632]
[1771346942840,1.25754527,1988.0,1986.6,0.50131632]
[1771346943047,3.413957,1987.9,1986.6,0.50131632]
[1771346943342,1.25754527,1988.0,1986.6,0.50131632]
[1771346943550,5.03018108,1988.2,1986.8,0.49831632]
[1771346943851,5.03018108,1988.2,1987.2,0.49831632]
[1771346944250,7.13419138,1988.7,1987.5,0.49831632]
[1771346944580,1.25697621,1988.9,1987.7,6.57605374]
[1771346944908,1.25801794,1989.0,1987.8,0.49831632]
[1771346945283,0.0011,1989.0,1988.1,0.49831632]
[1771346945445,0.0011,1989.1,1988.4,0.49831632]
[1771346945644,5.02536707,1990.0,1988.7,0.49831632]
[1771346946248,5.066097,1990.1,1988.6,6.57605374]
[1771346946451,1.25615516,1990.2,1988.7,0.49831632]
[1771346946870,2.04464653,1990.2,1988.7,0.49831632]
[1771346948480,2.04464653,1990.2,1988.9,0.49831632]
[1771346949161,2.04464653,1990.2,1989.0,0.49831632]
[1771346949553,0.78849137,1990.2,1989.3,0.49831632]
[1771346949876,1.25615986,1990.2,1989.3,0.49831632]
[1771346950077,0.0011,1990.3,1989.5,7.07437006]
[1771346950274,0.0011,1990.3,1989.6,1.75485029]
[1771346950478,0.0011,1990.3,1989.7,0.49831632]
[1771346950854,0.0011,1990.3,1988.9,5.02766481]
[1771346950855,0.0011,1990.3,1989.3,1.75503979]
[1771346951479,0.0011,1990.1,1989.3,1.75503979]
[1771346952694,0.0011,1990.1,1988.9,8.33128308]
[1771346952863,0.0011,1990.1,1989.0,5.02752622]
[1771346953178,0.0011,1990.1,1989.0,1.25691302]
[1771346953764,0.0011,1990.1,1988.9,1.25693851]
[1771346954366,1.25731828,1990.1,1988.8,0.001]
[1771346954573,15.463732,1990.0,1988.8,0.001]
[1771346954950,1.25731828,1990.1,1988.8,0.001]
[1771346955184,2.702104,1990.0,1988.8,0.001]
[1771346955872,15.954554,1989.8,1988.8,0.001]
[1771346956080,0.23406383,1989.8,1988.8,0.001]
[1771346956304,1.25731828,1990.1,1988.8,0.001]
[1771346956457,1.25731828,1990.1,1988.9,6.57605374]
[1771346956651,1.25731828,1990.1,1988.9,0.47764377]
[1771346958496,0.0011,1990.1,1988.9,0.47764377]
[1771346958652,25.19811157,1990.0,1988.8,0.001]
[1771346958852,14.222055,1989.9,1988.8,1.25803799]
[1771346959059,0.23406383,1989.8,1988.8,0.001]
[1771346959883,16.03028383,1989.6,1988.8,0.001]
[1771346960172,0.23406383,1989.6,1988.8,0.001]
[1771346960369,0.1024,1989.9,1988.8,1.2580391]
[1771346960568,0.23406383,1988.9,1987.5,30.0]
[1771346960779,6.81011757,1988.4,1986.8,1.73588525]
[1771346960981,6.81011757,1988.4,1986.6,0.003]
[1771346960982,18.62905574,1988.1,1986.6,0.003]
[1771346961288,5.774319,1988.0,1986.6,0.003]
[1771346961490,6.607854,1988.5,1986.9,7.05369751]
[1771346961986,6.607854,1988.5,1986.9,0.47764377]
[1771346962166,6.84191783,1988.5,1986.9,0.47764377]
[1771346962362,3.754157,1988.3,1986.9,0.47764377]
[1771346962577,1.25741877,1988.2,1986.9,0.47764377]
[1771346963088,15.391668,1988.1,1986.6,0.003]
[1771346963585,0.23406383,1988.1,1986.6,0.003]
[1771346963959,1.25741877,1988.2,1986.6,0.003]
[1771346963960,0.23406383,1987.9,1986.6,0.003]
[1771346964609,14.76597762,1987.8,1986.6,0.003]
[1771346964760,20.723808,1987.6,1986.6,0.003]
[1771346964960,17.260882,1987.5,1987.0,0.001]
[1771346965157,0.23406383,1987.6,1986.6,0.003]
[1771346965370,6.771423,1987.5,1986.9,0.001]
[1771346965772,5.263923,1987.5,1986.9,0.001]
[1771346966188,1.25767179,1987.8,1986.9,0.001]
[1771346966569,1.25741877,1988.2,1986.9,0.001]
[1771346966765,3.358418,1988.0,1986.9,0.001]
[1771346967893,4.481165,1988.0,1986.9,0.001]
[1771346968399,1.25741877,1988.2,1986.9,0.47864377]
[1771346968602,5.02967508,1988.3,1986.9,1.73683218]
[1771346968895,5.02967508,1988.3,1987.0,0.47764377]
[1771346970096,18.080109,1988.1,1986.9,0.001]
[1771346970388,14.653733,1988.0,1986.9,0.001]
[1771346970591,1.25760853,1987.9,1986.9,0.001]
[1771346970764,5.602783,1987.7,1986.9,0.001]
[1771346970964,20.952121,1987.6,1986.9,0.001]
[1771346971195,20.952121,1987.6,1986.6,0.003]
[1771346971196,9.415179,1987.6,1986.6,0.003]
[1771346971411,1.25760853,1987.9,1986.6,1.26142291]
[1771346971580,1.25760853,1987.9,1986.6,1.73906668]
[1771346971990,1.25760853,1987.9,1986.7,0.47764377]
[1771346972709,0.23406383,1988.4,1986.8,1.25830481]
[1771346972893,3.197882,1988.3,1986.8,1.25830481]
[1771346973206,3.197882,1988.3,1986.7,5.5110749]
[1771346973207,10.707052,1988.2,1986.7,1.73600876]
[1771346973370,4.542036,1988.2,1986.8,0.47764377]